bitfinex-derivatives/quotes_SOLF0:USTF0_20241224
["timestamp","ask_amount","ask_price","bid_price","bid_amount"]
[1735060752536,2.5496,196.29,196.24,5.8903]
[1735060753037,3.34,196.35,196.22,27.15789166]
[1735060753237,3.34,196.35,196.22,9.1108]
[1735060753532,4.9833,196.35,196.22,6.5604]
[1735060753733,4.9833,196.35,196.22,30.49789166]
[1735060754030,3.1413,196.39,196.22,30.49789166]
[1735060754236,2.5488,196.36,196.31,2.5494]
[1735060754632,23.93749166,196.42,196.29,3.34]
[1735060754827,27.27749166,196.42,196.29,3.34]
[1735060755028,27.27749166,196.42,196.32,2.5491]
[1735060755029,2.5485,196.38,196.32,2.5491]
[1735060755228,27.27749166,196.42,196.29,3.34]
[1735060755431,2.5483,196.39,196.34,2.5489]
[1735060755632,3.34,196.42,196.29,3.34]
[1735060755834,3.34,196.42,196.3,25.46499166]
[1735060756037,27.27749166,196.46,196.3,25.46499166]
[1735060756240,27.27749166,196.46,196.31,3.2672]
[1735060756447,4.1907,196.47,196.41,2.548]
[1735060756635,3.34,196.5,196.36,3.34]
[1735060757138,2.5471,196.49,196.43,2.5477]
[1735060757534,3.34,196.5,196.43,2.5477]
[1735060759239,2.5472,196.48,196.43,2.5477]
[1735060759739,2.5473,196.47,196.41,2.548]
[1735060759940,3.34,196.5,196.41,2.548]
[1735060760337,2.5478,196.44,196.38,2.5484]
[1735060760536,27.27749166,196.5,196.38,2.5484]
[1735060760742,27.27749166,196.5,196.36,3.34]
[1735060761437,2.5476,196.45,196.39,2.5483]
[1735060762742,2.5476,196.45,196.4,2.5481]
[1735060764142,2.5476,196.45,196.41,2.548]
[1735060764438,3.34,196.5,196.36,3.34]
[1735060764639,27.27749166,196.54,196.44,2.5476]
[1735060764840,27.27749166,196.54,196.39,23.93749166]
[1735060765040,27.27749166,196.54,196.4,1.5745]
[1735060765240,3.34,196.54,196.41,1.6282]
[1735060766442,23.93749166,196.53,196.41,1.6282]
[1735060766633,23.93749166,196.53,196.4,1.5745]
[1735060766835,23.93749166,196.47,196.36,2.5487]
[1735060767038,1.6753,196.46,196.32,1.5745]
[1735060767441,3.1555,196.45,196.32,1.5745]
[1735060767737,23.93749166,196.37,196.25,55.93050126]
[1735060768051,5.0153,196.36,196.21,27.06879166]
[1735060768342,2.5491,196.34,196.28,2.5496]
[1735060768838,1.6753,196.36,196.26,14.95803364]
[1735060769033,2.549,196.35,196.29,2.5495]
[1735060769233,1.6753,196.36,196.26,14.95803364]
[1735060769941,16.63333364,196.36,196.23,14.95803364]
[1735060770144,25.61964093,196.36,196.21,3.1313]
[1735060770341,2.5495,196.31,196.24,2.5501]
[1735060770538,25.61964093,196.36,196.24,2.5501]
[1735060771836,2.5495,196.31,196.25,2.5501]
[1735060772039,25.61964093,196.36,196.21,3.1313]
[1735060772238,2.5494,196.31,196.24,2.5501]
[1735060772438,3.2546,196.35,196.24,2.5501]
[1735060772845,2.5496,196.3,196.24,2.5501]
[1735060773046,3.2546,196.35,196.24,2.5501]
[1735060773246,3.2546,196.35,196.22,2.5504]
[1735060773437,2.55,196.27,196.22,2.5504]
[1735060774347,2.5497,196.29,196.24,2.5502]
[1735060774848,3.36,196.33,196.21,3.1313]
[1735060775038,2.5495,196.3,196.21,3.1313]
[1735060775445,2.5495,196.3,196.23,2.5503]
[1735060775645,2.5495,196.3,196.21,3.1313]
[1735060776047,2.5495,196.3,196.25,2.55]
[1735060776445,2.5493,196.32,196.21,3.1313]
[1735060776844,3.36,196.33,196.26,2.5499]
[1735060777448,3.2546,196.35,196.26,2.5499]
[1735060778545,2.5494,196.31,196.26,2.5499]
[1735060779855,2.5495,196.3,196.26,2.5499]
[1735060780647,2.5495,196.31,196.26,2.5499]
[1735060781954,3.2546,196.35,196.26,2.5499]
[1735060782153,2.5495,196.3,196.26,2.5499]
[1735060782356,3.2546,196.35,196.26,2.5499]
[1735060782750,2.5496,196.3,196.26,2.5499]
[1735060783054,3.2546,196.35,196.24,2.5502]
[1735060783650,23.94434093,196.33,196.24,2.5502]
[1735060783859,23.94434093,196.33,196.21,5.6819]
[1735060784148,2.5501,196.26,196.21,5.6819]
[1735060784348,3.36,196.32,196.21,3.1313]
[1735060784550,2.5499,196.27,196.21,3.1313]
[1735060784854,3.2546,196.35,196.26,2.55]
[1735060785050,2.5494,196.31,196.23,4.56394749]
[1735060785249,2.5494,196.31,196.21,3.1313]
[1735060785450,3.2546,196.35,196.22,4.56406464]
[1735060785647,23.94434093,196.33,196.16,3.36]
[1735060785851,23.94434093,196.33,196.17,6.11580876]
[1735060786049,23.94434093,196.33,196.18,12.50754723]
[1735060786251,23.94434093,196.33,196.19,4.56480876]
[1735060786454,23.94434093,196.33,196.2,4.56480876]
[1735060786655,23.94434093,196.33,196.21,4.56676697]
[1735060786849,23.94434093,196.33,196.21,4.78803847]
[1735060787052,23.94434093,196.33,196.18,3.1547]
[1735060787257,23.94434093,196.33,196.19,9.35944703]
[1735060787553,23.94434093,196.33,196.2,9.35944703]
[1735060787748,2.5504,196.23,196.2,4.79268006]
[1735060787949,2.5504,196.23,196.19,2.5508]
[1735060788759,2.5505,196.22,196.19,2.5508]
[1735060789054,3.2546,196.35,196.18,1.6231]
[1735060789257,6.6146,196.35,196.2,23.94434093]
[1735060789457,6.6146,196.35,196.21,12.7280497]
[1735060789458,2.5494,196.31,196.21,12.7280497]
[1735060789653,6.6146,196.35,196.22,4.57172157]
[1735060789852,6.6146,196.35,196.23,4.57172157]
[1735060790153,6.6146,196.35,196.24,4.57238557]
[1735060790347,6.6146,196.35,196.21,3.36]
[1735060790652,2.5495,196.3,196.26,2.5499]
[1735060791045,2.5495,196.3,196.21,3.36]
[1735060791046,2.5497,196.29,196.25,2.5501]
[1735060791456,2.5497,196.29,196.21,3.36]
[1735060791653,2.5497,196.29,196.22,9.36748793]
[1735060791952,6.6146,196.35,196.21,3.36]
[1735060792257,14.97098468,196.3,196.23,2.5503]
[1735060792650,2.5498,196.28,196.24,2.5502]
[1735060795252,14.97098468,196.3,196.18,16.59408468]
[1735060795453,2.55,196.26,196.23,2.5503]
[1735060796352,2.5499,196.27,196.23,2.5503]
[1735060798256,14.97098468,196.3,196.18,16.59408468]
[1735060798557,14.97098468,196.3,196.21,2.5506]
[1735060798756,14.97098468,196.3,196.18,1.6231]
[1735060798952,14.97098468,196.27,196.17,2.551]
[1735060799154,4.8382,196.26,196.17,2.551]
[1735060799853,2.5504,196.24,196.12,14.97098468]
[1735060800158,2.5504,196.24,196.15,14.97098468]
[1735060801055,2.5504,196.24,196.17,2.5511]
[1735060801359,2.5504,196.24,196.15,14.97098468]
[1735060802260,4.8382,196.26,196.15,14.97098468]
[1735060802457,2.5504,196.23,196.19,2.5508]
[1735060803556,4.8382,196.26,196.15,14.97098468]
[1735060803757,2.5508,196.21,196.14,81.06090923]
[1735060804362,2.5508,196.21,196.16,2.5513]
[1735060804560,2.5508,196.2,196.14,77.72090923]
[1735060804761,4.8382,196.26,196.14,77.72090923]
[1735060804955,4.8382,196.26,196.17,2.5511]
[1735060805156,2.5503,196.24,196.15,14.97098468]
[1735060805461,2.5503,196.24,196.19,2.5508]
[1735060805949,2.5503,196.24,196.15,14.97098468]
[1735060806253,8.1782,196.26,196.15,14.97098468]
[1735060806455,8.1782,196.26,196.14,77.72090923]
[1735060807553,2.5506,196.22,196.18,2.5509]
[1735060807753,2.5506,196.22,196.14,77.72090923]
[1735060807952,8.1782,196.26,196.14,77.72090923]
[1735060808358,2.5503,196.24,196.2,2.5508]
[1735060808953,2.5504,196.23,196.2,2.5508]
[1735060809356,8.1782,196.26,196.15,4.8040104]
[1735060809757,8.1782,196.26,196.14,77.72090923]
[1735060809965,2.5507,196.21,196.17,2.5511]
[1735060810657,2.5509,196.2,196.15,2.5513]
[1735060810853,8.1782,196.26,196.14,77.72090923]
[1735060810854,14.97098468,196.24,196.14,77.72090923]
[1735060811061,14.97098468,196.21,196.11,1.5257]
[1735060811259,14.97098468,196.21,196.13,2.5516]
[1735060812261,3.34,196.2,196.08,14.97098468]
[1735060812469,3.34,196.2,196.11,2.5519]
[1735060812470,14.97098468,196.18,196.11,2.5519]
[1735060812667,14.97098468,196.18,196.05,4.8753]
[1735060812864,2.5518,196.13,196.06,4.59180607]
[1735060813065,2.5518,196.13,196.08,2.5523]
[1735060813374,2.5519,196.11,196.09,4.81625112]
[1735060813561,1.5296,196.17,196.09,4.81625112]
[1735060813865,1.5296,196.17,196.08,2.5523]
[1735060814163,14.97098468,196.15,196.05,2.5526]
[1735060814359,3.34,196.14,196.06,4.59127413]
[1735060814565,3.34,196.14,196.04,3.34]
[1735060814965,2.5521,196.1,196.05,4.81195259]
[1735060815160,14.97098468,196.12,196.05,4.81195259]
[1735060815461,2.5525,196.07,195.96,6.4843]
[1735060815664,14.97098468,196.12,195.99,14.97098468]
[1735060815965,14.97098468,196.12,196.02,2.553]
[1735060816267,14.97098468,196.12,196.03,2.5528]
[1735060816468,14.97098468,196.15,196.02,14.97098468]
[1735060816667,2.552,196.11,196.03,4.58432646]
[1735060816963,3.34,196.14,196.05,2.5526]
[1735060817162,2.552,196.11,196.05,2.5526]
[1735060817367,3.34,196.14,196.02,14.97098468]
[1735060817568,3.34,196.14,196.04,2.5528]
[1735060817768,2.5522,196.1,196.04,2.5528]
[1735060818067,3.34,196.14,196.04,2.5528]
[1735060818461,3.34,196.14,196.0,3.34]
[1735060818665,14.97098468,196.12,196.01,4.57832588]
[1735060818866,14.97098468,196.12,196.01,4.80207035]
[1735060819164,2.5522,196.09,196.02,7.35517035]
[1735060819365,14.97098468,196.12,195.99,14.97098468]
[1735060819563,4.8368,196.17,196.05,14.97098468]
[1735060820067,4.8368,196.17,196.06,9.36945761]
[1735060820265,2.5518,196.12,196.07,2.5523]
[1735060820467,2.5518,196.12,196.04,18.31098468]
[1735060820861,2.5515,196.14,196.07,2.5524]
[1735060821169,4.8368,196.17,196.05,4.79573775]
[1735060821366,4.8368,196.17,196.04,18.31098468]
[1735060821367,4.8368,196.17,196.11,2.5519]
[1735060821567,2.5514,196.16,196.11,2.5519]
[1735060821760,4.8368,196.17,196.05,3.0501]
[1735060821964,2.5517,196.13,196.09,2.5521]
[1735060822369,4.8368,196.17,196.05,3.0501]
[1735060822565,4.8368,196.17,196.06,4.57157656]
[1735060822765,4.8368,196.17,196.05,3.0501]
[1735060822968,4.8368,196.17,196.06,4.57147528]
[1735060823170,14.97098468,196.21,196.07,14.97098468]
[1735060823469,18.31098468,196.24,196.1,14.97098468]
[1735060823666,2.5505,196.22,196.18,2.551]
[1735060824069,2.5505,196.22,196.11,4.5710929]
[1735060824266,2.5505,196.22,196.17,2.551]
[1735060824566,2.5505,196.22,196.1,18.31098468]
[1735060824567,2.5505,196.22,196.13,14.97098468]
[1735060824768,2.5504,196.23,196.18,2.5509]
[1735060825370,2.5505,196.22,196.18,2.5509]
[1735060826172,14.97098468,196.21,196.1,18.31098468]
[1735060826370,14.97098468,196.21,196.1,3.34]
[1735060826772,2.5511,196.17,196.11,2.5519]
[1735060827077,14.97098468,196.18,196.11,2.5519]
[1735060827579,2.5513,196.16,196.12,2.5517]
[1735060828575,2.5513,196.16,196.07,14.97098468]
[1735060828772,14.97098468,196.21,196.1,14.97098468]
[1735060829072,14.97098468,196.24,196.11,9.37503659]
[1735060829276,6.441,196.26,196.13,14.97098468]
[1735060829477,6.441,196.26,196.16,14.97098468]
[1735060829777,2.5503,196.24,196.19,2.5507]
[1735060830274,6.441,196.26,196.14,3.1383]
[1735060831272,2.5505,196.22,196.18,2.5508]
[1735060831473,6.441,196.26,196.14,3.1383]
[1735060831877,6.441,196.26,196.16,2.5512]
[1735060832375,14.97098468,196.24,196.14,1.5315]
[1735060832676,14.97098468,196.24,196.1,3.34]
[1735060832975,14.97098468,196.24,196.13,2.5516]
[1735060833192,14.97098468,196.24,196.1,3.34]
[1735060833573,2.5509,196.19,196.14,2.5515]
[1735060834678,14.97098468,196.24,196.13,2.5516]
[1735060835073,6.441,196.26,196.07,3.2728]
[1735060835074,14.97098468,196.21,196.07,6.6328]
[1735060835275,2.5517,196.13,196.09,2.5521]
[1735060835776,2.5515,196.14,196.1,2.5519]
[1735060835973,1.6505,196.2,196.08,14.97098468]
[1735060836374,1.6505,196.2,196.09,9.39048336]
[1735060836571,2.5511,196.17,196.11,2.5518]
[1735060836773,1.6505,196.2,196.08,14.97098468]
[1735060836971,1.6505,196.2,196.09,4.58364276]
[1735060837182,2.5507,196.2,196.16,2.5512]
[1735060837481,2.5507,196.2,196.12,4.80807142]
[1735060837782,2.5507,196.2,196.16,2.5512]
[1735060838480,2.5508,196.19,196.16,2.5512]
[1735060838681,2.5508,196.19,196.15,2.5513]
[1735060841488,2.5513,196.16,196.12,2.5517]
[1735060841887,1.5624,196.23,196.12,2.5517]
[1735060842082,1.5624,196.23,196.08,14.97098468]
[1735060842083,2.5514,196.15,196.1,2.5519]
[1735060842284,14.97098468,196.21,196.11,4.81486164]
[1735060842586,2.5516,196.13,196.1,2.5519]
[1735060842786,2.5516,196.13,196.08,2.5522]
[1735060843187,16.52038468,196.18,196.07,3.2728]
[1735060843385,18.15778468,196.18,196.05,14.97098468]
[1735060843587,18.15778468,196.18,196.06,9.4092018]
[1735060843793,2.5521,196.1,196.05,2.5526]
[1735060843988,18.15778468,196.18,196.06,4.59254843]
[1735060844192,18.15778468,196.18,196.07,4.59234642]
[1735060844394,18.15778468,196.18,196.07,4.8169296]
[1735060844601,2.5516,196.14,196.1,2.552]
[1735060844893,3.1868,196.18,196.08,14.97098468]
[1735060845103,1.5494,196.18,196.08,18.33098468]
[1735060845294,1.5624,196.23,196.11,14.97098468]
[1735060845695,1.5624,196.23,196.12,9.40836552]
[1735060845893,2.5507,196.2,196.16,2.5511]
[1735060846892,1.5624,196.23,196.14,14.97098468]
[1735060847200,1.5624,196.23,196.14,2.5514]
[1735060847899,1.5624,196.23,196.13,2.5516]
[1735060848300,2.5507,196.2,196.13,2.5516]
[1735060848602,1.5624,196.23,196.11,14.97098468]
[1735060848901,1.5624,196.23,196.12,9.4110486]
[1735060849092,1.5624,196.23,196.12,4.81781982]
[1735060849292,16.53338468,196.23,196.11,14.97098468]
[1735060850004,2.5513,196.16,196.12,2.5517]
[1735060850205,2.5513,196.16,196.11,14.97098468]
[1735060850598,2.5513,196.16,196.12,4.81875594]
[1735060850799,2.5511,196.17,196.13,2.5515]
[1735060850997,1.5624,196.23,196.13,2.5515]
[1735060851508,2.5512,196.16,196.13,2.5515]
[1735060851994,1.5624,196.23,196.13,2.5515]
[1735060851995,2.5511,196.17,196.13,2.5515]
[1735060852905,1.5624,196.23,196.13,2.5515]
[1735060853106,2.5512,196.16,196.13,2.5515]
[1735060853307,2.5512,196.16,196.11,14.97098468]
[1735060853607,2.5511,196.17,196.12,4.59575819]
[1735060853805,2.5511,196.17,196.11,14.97098468]
[1735060854002,1.5624,196.23,196.13,2.5515]
[1735060854202,2.5512,196.16,196.11,14.97098468]
[1735060854602,2.5512,196.16,196.12,9.41761957]
[1735060854900,2.5512,196.16,196.11,14.97098468]
[1735060855105,2.5512,196.16,196.12,4.59681871]
[1735060855305,2.5512,196.16,196.11,14.97098468]
[1735060855498,2.5511,196.17,196.12,4.5968187]
[1735060855701,2.5511,196.17,196.11,14.97098468]
[1735060855905,1.5624,196.23,196.14,14.97098468]
[1735060856105,2.5508,196.2,196.16,2.5511]
[1735060856298,1.5624,196.23,196.14,14.97098468]
[1735060856703,2.5506,196.21,196.17,2.551]
[1735060856905,1.5624,196.23,196.15,4.82110535]
[1735060857104,3.1753,196.26,196.16,4.82110535]
[1735060857403,3.1753,196.26,196.18,2.5509]
[1735060857609,3.1753,196.26,196.17,14.97098468]
[1735060858108,2.5507,196.21,196.17,17.52198468]
[1735060858507,2.5507,196.21,196.17,14.97098468]
[1735060858712,2.5507,196.21,196.18,2.5509]
[1735060859010,2.5507,196.21,196.17,14.97098468]
[1735060859212,2.5507,196.21,196.17,17.52208468]
[1735060860502,2.5507,196.21,196.18,2.5509]
[1735060860906,3.1753,196.26,196.17,14.97098468]
[1735060861102,1.5771,196.26,196.17,14.97098468]
[1735060861408,2.5499,196.26,196.2,14.97098468]
[1735060861611,62.65423559,196.32,196.24,2.5501]
[1735060861814,62.65423559,196.32,196.2,14.97098468]
[1735060862009,2.55,196.26,196.2,14.97098468]
[1735060862206,62.65423559,196.32,196.21,4.8220782]
[1735060862412,14.97098468,196.3,196.21,4.8220782]
[1735060862606,14.97098468,196.3,196.17,18.27478468]
[1735060862812,14.97098468,196.3,196.18,4.59733729]
[1735060863011,14.97098468,196.3,196.19,9.41919181]
[1735060863313,14.97098468,196.3,196.2,4.82185452]
[1735060863503,3.34,196.3,196.2,4.82185452]
[1735060863705,3.34,196.3,196.19,14.97098468]
[1735060863914,3.34,196.3,196.2,4.59785141]
[1735060864213,3.34,196.3,196.19,14.97098468]
[1735060864412,3.34,196.3,196.2,4.82182785]
[1735060864613,3.34,196.3,196.22,2.5503]
[1735060864814,3.34,196.3,196.21,4.82182785]
[1735060865010,2.5492,196.31,196.27,2.5497]
[1735060865211,1.6707,196.32,196.23,14.97098468]
[1735060865510,1.6707,196.32,196.2,14.97098468]
[1735060865706,1.6707,196.32,196.21,4.59652821]
[1735060865907,1.6707,196.32,196.11,4.7255]
[1735060866114,1.6707,196.32,196.18,14.97098468]
[1735060866307,2.5503,196.24,196.19,4.59706743]
[1735060866516,2.5503,196.24,196.18,14.97098468]
[1735060866818,1.6707,196.32,196.19,9.41843159]
[1735060867013,1.6707,196.32,196.21,2.5504]
[1735060867317,1.6707,196.32,196.21,14.97098468]
[1735060867511,1.6707,196.32,196.23,2.5502]
[1735060867717,1.6707,196.32,196.21,14.97098468]
[1735060868315,1.6707,196.32,196.22,2.5504]
[1735060868618,1.6707,196.32,196.21,14.97098468]
[1735060868819,2.5495,196.29,196.24,2.55]
[1735060869016,1.6707,196.32,196.24,2.55]
[1735060869715,1.6707,196.32,196.21,14.97098468]
[1735060869912,1.6707,196.32,196.22,4.81972611]
[1735060870217,1.6707,196.32,196.21,14.97098468]
[1735060870417,2.55,196.25,196.21,14.97098468]
[1735060870819,1.6707,196.32,196.19,3.0775]
[1735060871017,2.5504,196.23,196.19,5.6282]
[1735060871218,3.34,196.29,196.19,3.0775]
[1735060871418,2.5504,196.23,196.19,3.0775]
[1735060873419,2.5504,196.22,196.19,3.0775]
[1735060873727,3.34,196.29,196.16,2.5511]
[1735060873922,2.37882661,196.28,196.16,2.5511]
[1735060874122,2.5508,196.2,196.16,2.5511]
[1735060875224,1.5955,196.28,196.15,14.97098468]
[1735060875225,2.5505,196.22,196.15,14.97098468]
[1735060875526,1.5955,196.28,196.18,14.97098468]
[1735060875727,1.5955,196.28,196.19,9.41525944]
[1735060876027,2.5502,196.24,196.21,2.5504]
[1735060876217,2.5502,196.24,196.2,4.82014895]
[1735060876525,2.5502,196.24,196.18,14.97098468]
[1735060876736,2.5502,196.24,196.2,2.5506]
[1735060876929,2.5502,196.24,196.18,14.97098468]
[1735060877126,2.5502,196.24,196.19,4.59418745]
[1735060877420,2.5502,196.24,196.19,4.81869693]
[1735060877721,1.6707,196.32,196.18,14.97098468]
[1735060877921,1.6707,196.32,196.21,14.97098468]
[1735060878118,2.5494,196.3,196.26,2.5499]
[1735060878323,1.6707,196.32,196.24,14.97098468]
[1735060878718,4.2199,196.32,196.27,2.5496]
[1735060879025,56.01543559,196.38,196.3,14.97098468]
[1735060879428,2.5484,196.37,196.32,2.5489]
[1735060881023,1.5801,196.4,196.3,17.52028468]
[1735060881223,1.5801,196.4,196.3,14.97098468]
[1735060882128,2.5487,196.35,196.3,14.97098468]
[1735060883028,2.5484,196.37,196.32,2.5489]
[1735060883527,1.5801,196.4,196.3,14.97098468]
[1735060883827,2.5482,196.39,196.34,2.5487]
[1735060884028,2.5482,196.39,196.33,14.97098468]
[1735060884535,2.5482,196.38,196.33,14.97098468]
[1735060885030,2.5482,196.38,196.33,17.51968468]
[1735060885332,1.5782,196.42,196.33,17.51968468]
[1735060885527,1.5782,196.42,196.32,3.34]
[1735060885729,2.5485,196.36,196.32,3.34]
[1735060886230,2.5485,196.36,196.32,5.889]
[1735060886729,2.5484,196.37,196.33,2.5488]
[1735060887632,1.5782,196.42,196.32,3.34]
[1735060888035,16.54918468,196.42,196.32,3.34]
[1735060888332,16.54918468,196.42,196.31,3.1625]
[1735060888733,2.5488,196.34,196.31,3.1625]
[1735060890035,16.54918468,196.42,196.31,3.1625]
[1735060890230,1.5782,196.42,196.33,14.97098468]
[1735060890836,2.5485,196.36,196.33,14.97098468]
[1735060891934,2.5486,196.35,196.33,14.97098468]
[1735060893028,1.5782,196.42,196.33,14.97098468]
[1735060893924,2.5483,196.38,196.35,2.5486]
[1735060894126,1.5782,196.42,196.33,14.97098468]
[1735060894329,14.97098468,196.45,196.33,14.97098468]
[1735060895032,2.5481,196.4,196.36,2.5484]
[1735060895428,2.548,196.4,196.36,2.5484]
[1735060895930,2.548,196.4,196.33,14.97098468]
[1735060895931,2.5482,196.38,196.35,2.5486]
[1735060896136,14.97098468,196.45,196.33,14.97098468]
[1735060896633,2.5483,196.38,196.34,2.5487]
[1735060897236,14.97098468,196.45,196.33,14.97098468]
[1735060897435,4.9539,196.46,196.33,14.97098468]
[1735060897831,2.548,196.4,196.37,2.5483]
[1735060898930,2.5481,196.39,196.35,2.5485]
[1735060899135,4.9539,196.46,196.35,2.5485]
[1735060899335,4.9539,196.46,196.33,14.97098468]
[1735060899635,15.75525801,196.45,196.33,14.97098468]
[1735060899836,0.78427333,196.44,196.33,14.97098468]
[1735060900334,14.97098468,196.45,196.33,14.97098468]
[1735060900538,0.78419945,196.44,196.33,14.97098468]
[1735060901131,2.5486,196.36,196.33,14.97098468]
[1735060901932,4.9539,196.46,196.35,2.5486]
[1735060902130,4.9539,196.46,196.33,14.97098468]
[1735060902431,2.5479,196.41,196.33,14.97098468]
[1735060902635,1.5739,196.46,196.36,14.97098468]
[1735060903331,1.5739,196.46,196.39,2.5481]
[1735060903932,2.5477,196.43,196.39,2.5481]
[1735060904434,67.99098468,196.54,196.39,14.97098468]
[1735060904631,0.78507886,196.51,196.39,14.97098468]
[1735060904829,2.48555641,196.52,196.44,2.5474]
[1735060905035,2.5468,196.49,196.42,14.97098468]
[1735060905533,2.5468,196.49,196.45,2.5473]
[1735060906538,2.5469,196.48,196.44,2.5474]
[1735060906933,1.6455,196.53,196.42,18.25448468]
[1735060907938,2.5473,196.46,196.42,20.80218468]
[1735060908240,1.6455,196.53,196.42,18.25448468]
[1735060908736,2.5471,196.47,196.42,18.25448468]
[1735060908936,1.6455,196.53,196.42,18.25448468]
[1735060909138,1.6455,196.53,196.45,2.5472]
[1735060910142,2.5469,196.48,196.44,2.5474]
[1735060911238,2.5469,196.48,196.42,18.25448468]
[1735060911239,1.6455,196.53,196.45,2.5472]
[1735060911440,1.6455,196.53,196.42,18.25448468]
[1735060912436,2.5469,196.48,196.44,2.5474]
[1735060915648,2.5467,196.5,196.46,2.5471]
[1735060916751,2.5468,196.49,196.46,2.5471]
[1735060917655,2.5468,196.49,196.45,17.51828468]
[1735060918453,2.5473,196.46,196.42,24.18218468]
[1735060918857,1.6455,196.53,196.42,18.25448468]
[1735060919045,2.5474,196.45,196.42,18.25448468]
[1735060919459,1.6455,196.53,196.42,14.97098468]
[1735060919755,2.5477,196.42,196.39,17.51908468]
[1735060919955,3.38,196.5,196.39,14.97098468]
[1735060920149,2.5479,196.41,196.37,2.5483]
[1735060920562,2.5479,196.41,196.38,2.5482]
[1735060921258,2.548,196.4,196.37,2.5483]
[1735060921657,14.97098468,196.47,196.36,14.97098468]
[1735060921853,1.5626,196.46,196.33,18.18868468]
[1735060922049,14.97098468,196.44,196.33,14.97098468]
[1735060922356,3.38,196.43,196.3,18.35098468]
[1735060922556,3.38,196.43,196.31,11.92014227]
[1735060922756,3.38,196.43,196.31,7.34651504]
[1735060922957,2.5488,196.34,196.29,2.5494]
[1735060923157,14.97098468,196.41,196.28,14.97098468]
[1735060923459,14.97098468,196.41,196.29,4.57623008]
[1735060923669,14.97098468,196.41,196.31,2.5491]
[1735060924158,14.97098468,196.41,196.28,14.97098468]
[1735060924359,2.5487,196.35,196.3,2.5492]
[1735060924557,14.97098468,196.41,196.3,2.5492]
[1735060925353,14.97098468,196.41,196.29,2.5494]
[1735060925553,14.97098468,196.41,196.28,14.97098468]
[1735060926056,3.38,196.43,196.28,14.97098468]
[1735060926258,3.38,196.43,196.31,14.97098468]
[1735060926457,2.5483,196.38,196.33,2.5488]
[1735060926654,3.38,196.43,196.31,14.97098468]
[1735060927154,2.5485,196.36,196.27,2.5496]
[1735060927355,3.38,196.43,196.29,14.97098468]
[1735060927552,1.5551,196.45,196.32,14.97098468]
[1735060927753,2.5478,196.42,196.35,14.97098468]
[1735060928057,1.5551,196.45,196.38,14.97098468]
[1735060928257,4.1024,196.45,196.41,2.5477]
[1735060928959,2.5473,196.45,196.41,2.5477]
[1735060929349,2.5471,196.47,196.42,2.5477]
[1735060929651,14.97098468,196.53,196.38,14.97098468]
[1735060929652,3.34,196.52,196.38,14.97098468]
[1735060929857,3.34,196.52,196.41,14.97098468]
[1735060930156,14.97098468,196.53,196.43,2.5474]
[1735060930363,3.34,196.52,196.43,2.5474]
[1735060931258,14.97098468,196.53,196.41,14.97098468]
[1735060931563,3.34,196.54,196.41,14.97098468]
[1735060931959,14.97098468,196.56,196.45,2.5472]
[1735060932160,4.12507818,196.55,196.41,14.97098468]
[1735060932459,0.78507818,196.54,196.41,14.97098468]
[1735060932658,3.34,196.55,196.43,2.5474]
[1735060933054,3.34,196.55,196.41,14.97098468]
[1735060933364,3.34,196.55,196.44,2.5473]
[1735060934662,3.34,196.55,196.46,2.5471]
[1735060934871,3.34,196.56,196.44,14.97098468]
[1735060935066,4.6646,196.57,196.47,14.97098468]
[1735060935268,4.6646,196.57,196.5,2.5466]
[1735060935768,2.5462,196.54,196.5,2.5466]
[1735060936163,4.6646,196.57,196.47,14.97098468]
[1735060936662,4.6646,196.57,196.44,3.34]
[1735060936663,19.63558468,196.57,196.44,18.31098468]
[1735060936867,0.78591345,196.56,196.44,3.34]
[1735060937168,14.97098468,196.54,196.44,3.34]
[1735060937358,3.34,196.53,196.41,14.97098468]
[1735060937566,22.97558468,196.57,196.44,14.97098468]